fUSD/lending_fUSD_20250506
["ID","MTS","AMOUNT","RATE_DAILY","PERIOD"]
[360038844,1746507047692,-450.0,0.00019999,2]
[360038845,1746507047701,-450.0,0.00019999,2]
[360038846,1746507047710,-450.0,0.00019999,2]
[360038847,1746507047719,-327.29,0.00019999,2]
[360038848,1746507047728,-450.0,0.00019999,2]
[360038849,1746507047737,-450.0,0.00019999,2]
[360038850,1746507047750,-450.0,0.00019999,2]
[360038851,1746507047759,-450.0,0.00019999,2]
[360038852,1746507047769,-450.0,0.00019999,2]
[360038853,1746507047778,-450.0,0.00019999,2]
[360038854,1746507047786,-450.0,0.00019999,2]
[360038855,1746507047795,-450.0,0.00019999,2]
[360038856,1746507047804,-450.0,0.00019999,2]
[360038857,1746507047813,-450.0,0.00019999,2]
[360038858,1746507047822,-450.0,0.00019999,2]
[360038859,1746507047831,-450.0,0.00019999,2]
[360038860,1746507047840,-450.0,0.00019999,2]
[360038861,1746507047849,-450.0,0.00019999,2]
[360038862,1746507047858,-450.0,0.00019999,2]
[360038863,1746507047867,-193.44,0.00019999,2]
[360038864,1746507047876,-26999.83,0.00019999,2]
[360038865,1746507047884,-26999.83,0.00019999,2]
[360038866,1746507047894,-26999.83,0.00019999,2]
[360038867,1746507047903,-26999.83,0.00019999,2]
[360038868,1746507047912,-26999.83,0.00019999,2]
[360038869,1746507047921,-26999.83,0.00019999,2]
[360038870,1746507047931,-26999.83,0.00019999,2]
[360038871,1746507047941,-19435.03260734,0.00019999,2]
[360038872,1746507048136,-7564.79739266,0.00019999,2]
[360038873,1746507048145,-1679.15684071,0.00019999,2]
[360038874,1746507048165,-25320.67315929,0.00019999,2]
[360038875,1746507048174,-26999.83,0.00019999,2]
[360038876,1746507048184,-26999.83,0.00019999,2]
[360038877,1746507048194,-26999.83,0.00019999,2]
[360038878,1746507048202,-881.59,0.0002,2]
[360038879,1746507048211,-280.546,0.0002,2]
[360038880,1746507048221,-6475.122,0.0002,2]
[360038881,1746507048231,-4015.0,0.0002,2]
[360038882,1746507048240,-894.815,0.0002,2]
[360038883,1746507048250,-219097.76125044,0.0002,2]
[360038884,1746507048261,-781.00231089,0.0002,2]
[360038885,1746507048271,-1408.73283364,0.0002,2]
[360038886,1746507048282,-917.89264726,0.0002,2]
[360038887,1746507048293,-413.09191282,0.0002,2]
[360038888,1746507048305,-609.5,0.0002,2]
[360038889,1746507048321,-1999.37114212,0.00019999,2]
[360038890,1746507048332,-25000.45885788,0.00019999,2]
[360038891,1746507048342,-10289.22003923,0.0002,2]
[360038892,1746507048529,-432.06190101,0.00019999,2]
[360038893,1746507048541,-18329.01815158,0.00019999,2]
[360038894,1746507048551,-420.55585927,0.00019999,2]
[360038895,1746507048562,-4201.06019491,0.00019999,2]
[360038896,1746507048573,-3617.13389323,0.00019999,2]
[360038897,1746507048582,-2111.58353658,0.00019999,2]
[360038898,1746507048592,-2239.10260521,0.00019999,2]
[360038899,1746507048624,-1859.1,0.00019895,2]
[360038900,1746507048635,-640.9,0.00019895,2]
[360038901,1746507048644,-365.63876706,0.00019999,2]
[360038902,1746507048654,-1945.80985036,0.00019999,2]
[360038903,1746507048665,-924.46481138,0.00019999,2]
[360038906,1746507087468,200.0,0.00019105,2]
[360038908,1746507119874,1000.0,0.0003,30]
[360038919,1746507352276,-366.58,0.00019601,2]
[360038923,1746507361384,-50.05234,0.00019601,2]
[360038924,1746507364536,8267.4,0.00018953,2]
[360038925,1746507404539,190.59,0.00013699,2]
[360038926,1746507405049,190.59,0.00013699,2]
[360038927,1746507406094,190.60294978,0.00013699,2]
[360038941,1746507603930,303.38,0.00018939,2]
[360038946,1746507613882,155.0,0.000195,2]
[360038950,1746507628591,2000.0,0.000195,2]
[360038951,1746507629247,-230.0,0.00019507,2]
[360038952,1746507629270,-64.24638344,0.000196,2]
[360038958,1746507655217,234.0,0.000194,2]
[360038963,1746507668797,466.53,0.00017021,2]
[360038964,1746507669008,466.53,0.00019285,2]
[360038971,1746507697231,1000.0,0.00018932,2]
[360038997,1746507913188,169.08,0.00018919,2]
[360039004,1746507960353,250.0,0.00017,2]
[360039005,1746507961426,300.0,0.00019,2]
[360039009,1746508014939,250.0,0.00019395,2]
[360039010,1746508042084,6477.18,0.00018911,2]
[360039022,1746508231986,-234.0,0.000196,2]
[360039023,1746508231996,-200.0,0.000196,2]
[360039024,1746508232006,-250.0,0.00019605,2]
[360039025,1746508232015,-1000.0,0.000197,2]
[360039026,1746508232024,-200.0,0.00019773,2]
[360039027,1746508232033,-210.11094238,0.00019773,2]
[360039028,1746508232043,-234.0,0.000198,2]
[360039029,1746508232052,-500.0,0.00019808,2]
[360039030,1746508232061,-304.0,0.00019808,2]
[360039031,1746508232071,-200.0,0.00019823,2]
[360039032,1746508232080,-500.0,0.00019836,2]
[360039033,1746508232090,-207.4,0.00019882,2]
[360039034,1746508232099,-167.09330221,0.00019886,2]
[360039035,1746508232108,-224.7035,0.00019886,2]
[360039036,1746508232117,-193.73484558,0.00019887,2]
[360039037,1746508232127,-151.0,0.00019887,2]
[360039038,1746508232136,-188.52228189,0.00019887,2]
[360039039,1746508232146,-167.0933022,0.00019888,2]
[360039040,1746508232155,-167.0933022,0.00019889,2]
[360039041,1746508232164,-167.0933022,0.00019891,2]
[360039042,1746508232173,-167.0933022,0.00019892,2]
[360039043,1746508232183,-167.0933022,0.00019894,2]
[360039044,1746508232192,-1200.0,0.00019894,2]
[360039045,1746508232201,-300.0,0.00019894,2]
[360039046,1746508232210,-500.0,0.00019895,2]
[360039047,1746508232219,-1000.0,0.00019895,2]
[360039048,1746508232231,-1000.0,0.00019895,2]
[360039049,1746508232240,-167.0933022,0.00019895,2]
[360039050,1746508232249,-799.0,0.00019898,2]
[360039051,1746508232258,-18240.8769,0.00019899,2]
[360039052,1746508232267,-356.1649,0.00019899,2]
[360039053,1746508232276,-179.26896799,0.00019899,2]
[360039054,1746508232286,-159.40114631,0.000199,2]
[360039055,1746508232295,-258.3816147,0.000199,2]
[360039056,1746508232305,-20123.24441173,0.000199,2]
[360039057,1746508232322,-3002.0,0.000199,2]
[360039058,1746508232333,-1219.17424482,0.000199,2]
[360039059,1746508232345,-1120.54253944,0.000199,2]
[360039060,1746508232356,-417.12196834,0.000199,2]
[360039061,1746508232367,-949.20923204,0.000199,2]
[360039116,1746508238309,-167.0933022,0.00019897,2]
[360039117,1746508238320,-12825.58718686,0.000199,2]
[360039118,1746508238332,-4032.84271818,0.000199,2]
[360039121,1746508240385,-167.0933022,0.00019898,2]
[360039122,1746508240394,-37358.32848181,0.000199,2]
[360039123,1746508240404,-227.073121,0.000199,3]
[360039124,1746508240414,-500.0,0.00019945,2]
[360039125,1746508240423,-153.0,0.0001996,2]
[360039126,1746508240433,-2240.524,0.0001996,2]
[360039127,1746508240442,-5933.0,0.0001996,2]
[360039128,1746508240452,-500.0,0.00019973,2]
[360039129,1746508240461,-500.0,0.00019973,2]
[360039130,1746508240470,-312.16795537,0.00019973,2]
[360039131,1746508240479,-500.0,0.00019973,2]
[360039132,1746508240488,-1049.9390322,0.00019985,2]
[360039133,1746508240498,-217.038592,0.00019985,2]
[360039134,1746508240508,-500.0,0.00019985,2]
[360039135,1746508240517,-1371.982984,0.00019986,2]
[360039136,1746508240527,-20011.8765365,0.00019986,2]
[360039137,1746508240536,-47477.4536937,0.00019986,2]
[360039138,1746508240546,-6473.4480029,0.00019986,2]
[360039139,1746508240555,-450.0,0.00019995,2]
[360039140,1746508240565,-450.0,0.00019995,2]
[360039141,1746508240574,-450.0,0.00019995,2]
[360039142,1746508240584,-220.7416425,0.00019995,2]
[360039143,1746508240593,-450.0,0.00019995,2]
[360039144,1746508240603,-450.0,0.00019995,2]
[360039145,1746508240613,-175.6442106,0.00019996,2]
[360039146,1746508240622,-205.03750841,0.00019996,2]
[360039147,1746508240632,-478.89478997,0.00019996,2]
[360039148,1746508240641,-200.34161638,0.00019996,2]
[360039149,1746508240651,-450.0,0.00019996,2]
[360039150,1746508240660,-450.0,0.00019996,2]
[360039151,1746508240670,-589.49972068,0.00019997,2]
[360039152,1746508240679,-450.0,0.00019997,2]
[360039153,1746508240689,-389.04584021,0.00019997,2]
[360039154,1746508240698,-396.777921,0.00019997,2]
[360039155,1746508240708,-451.35622373,0.00019997,2]
[360039156,1746508240717,-451.91817862,0.00019997,2]
[360039157,1746508240726,-450.0,0.00019997,2]
[360039158,1746508240735,-416.38,0.00019997,2]
[360039159,1746508240745,-450.0,0.00019997,2]
[360039160,1746508240754,-450.0,0.00019997,2]
[360039161,1746508240763,-403.71340444,0.00019997,2]
[360039162,1746508240773,-265.83751921,0.00019997,2]
[360039163,1746508240782,-484.70769315,0.00019997,2]
[360039164,1746508240791,-489.65661438,0.00019997,2]
[360039165,1746508240800,-450.0,0.00019997,2]
[360039166,1746508240809,-159.85371253,0.00019997,2]
[360039167,1746508240819,-450.0,0.00019997,2]
[360039168,1746508240828,-552.23665313,0.00019997,2]
[360039169,1746508240837,-450.0,0.00019997,2]
[360039170,1746508240847,-543.12013927,0.00019997,2]
[360039171,1746508240856,-450.0,0.00019997,2]
[360039172,1746508240865,-450.0,0.00019997,2]
[360039173,1746508240875,-450.0,0.00019997,2]
[360039174,1746508240884,-450.0,0.00019997,2]
[360039175,1746508240894,-450.0,0.00019997,2]
[360039176,1746508240903,-450.0,0.00019997,2]
[360039177,1746508240913,-450.0,0.00019997,2]
[360039178,1746508240923,-450.0,0.00019997,2]
[360039179,1746508240932,-450.0,0.00019997,2]
[360039180,1746508240941,-450.0,0.00019997,2]
[360039181,1746508240951,-207.67752259,0.00019997,2]
[360039182,1746508240960,-419.24485588,0.00019997,2]
[360039183,1746508240969,-405.51397285,0.00019997,2]
[360039184,1746508240978,-380.59086615,0.00019997,2]
[360039185,1746508240987,-450.0,0.00019997,2]
[360039186,1746508240997,-299.31856176,0.00019997,2]
[360039187,1746508241006,-588.98563995,0.00019997,2]
[360039188,1746508241015,-450.0,0.00019997,2]
[360039189,1746508241024,-469.10441773,0.00019997,2]
[360039190,1746508241034,-450.0,0.00019997,2]
[360039191,1746508241043,-486.52973085,0.00019997,2]
[360039192,1746508241053,-450.0,0.00019997,2]
[360039193,1746508241062,-577.9130918,0.00019997,2]
[360039194,1746508241072,-589.89968229,0.00019997,2]
[360039195,1746508241081,-450.0,0.00019997,2]
[360039196,1746508241090,-450.0,0.00019997,2]
[360039197,1746508241099,-450.0,0.00019997,2]
[360039198,1746508241108,-450.0,0.00019997,2]
[360039199,1746508241118,-455.69095936,0.00019997,2]
[360039200,1746508241126,-450.0,0.00019997,2]
[360039201,1746508241135,-450.0,0.00019997,2]
[360039202,1746508241145,-450.0,0.00019997,2]
[360039203,1746508241155,-450.0,0.00019997,2]
[360039204,1746508241164,-450.0,0.00019997,2]
[360039205,1746508241173,-450.0,0.00019997,2]
[360039206,1746508241182,-332.82851744,0.00019997,2]
[360039207,1746508241191,-15118.59,0.00019997,2]
[360039208,1746508241201,-579.45804674,0.00019997,2]
[360039209,1746508241210,-450.0,0.00019997,2]
[360039210,1746508241219,-450.0,0.00019997,2]
[360039211,1746508241232,-450.0,0.00019997,2]
[360039212,1746508241241,-450.0,0.00019997,2]
[360039213,1746508241251,-450.0,0.00019997,2]
[360039214,1746508241260,-450.0,0.00019997,2]
[360039215,1746508241270,-450.0,0.00019997,2]
[360039216,1746508241279,-450.0,0.00019997,2]
[360039217,1746508241289,-450.0,0.00019997,2]
[360039218,1746508241298,-450.0,0.00019997,2]
[360039219,1746508241307,-461.0000001,0.00019997,2]
[360039220,1746508241316,-450.0,0.00019997,2]
[360039221,1746508241326,-450.0,0.00019997,2]
[360039222,1746508241335,-450.0,0.00019997,2]
[360039223,1746508241345,-529.25628653,0.00019997,2]
[360039224,1746508241354,-450.0,0.00019997,2]
[360039225,1746508241363,-489.96195882,0.00019997,2]
[360039226,1746508241373,-450.0,0.00019997,2]
[360039227,1746508241382,-464.20271004,0.00019997,2]
[360039228,1746508241392,-246.96321116,0.00019997,2]
[360039229,1746508241401,-450.0,0.00019997,2]
[360039230,1746508241410,-450.0,0.00019997,2]
[360039231,1746508241419,-450.0,0.00019997,2]
[360039232,1746508241428,-450.0,0.00019997,2]
[360039233,1746508241438,-450.0,0.00019997,2]
[360039234,1746508241447,-374.22485706,0.00019997,2]
[360039235,1746508241456,-450.0,0.00019997,2]
[360039236,1746508241465,-450.0,0.00019997,2]
[360039237,1746508241475,-432.28836219,0.00019997,2]
[360039238,1746508241484,-450.0,0.00019997,2]
[360039239,1746508241493,-450.0,0.00019997,2]
[360039240,1746508241503,-559.19311802,0.00019997,2]
[360039241,1746508241512,-580.63144996,0.00019997,2]
[360039242,1746508241521,-450.0,0.00019997,2]
[360039243,1746508241531,-515.24663202,0.00019997,2]
[360039244,1746508241540,-501.94800008,0.00019997,2]
[360039245,1746508241549,-549.50452412,0.00019997,2]
[360039246,1746508241558,-189.08691647,0.00019997,2]
[360039248,1746508241568,-450.0,0.00019997,2]
[360039250,1746508241577,-450.0,0.00019997,2]
[360039252,1746508241586,-450.0,0.00019997,2]
[360039253,1746508241596,-450.0,0.00019997,2]
[360039254,1746508241605,-450.0,0.00019997,2]
[360039255,1746508241615,-154.28613556,0.00019997,2]
[360039256,1746508241624,-450.0,0.00019997,2]
[360039257,1746508241634,-450.0,0.00019997,2]
[360039258,1746508241643,-450.0,0.00019997,2]
[360039259,1746508241652,-377.08189952,0.00019997,2]
[360039260,1746508241661,-450.0,0.00019997,2]
[360039261,1746508241671,-450.0,0.00019997,2]
[360039262,1746508241680,-159.8172007,0.00019997,2]
[360039263,1746508241689,-2979.6,0.00019997,2]
[360039264,1746508241698,-450.0,0.00019997,2]
[360039265,1746508241708,-450.0,0.00019997,2]
[360039266,1746508241717,-461.02728098,0.00019997,2]
[360039267,1746508241727,-450.0,0.00019997,2]
[360039268,1746508241736,-453.1521665,0.00019997,2]
[360039269,1746508241746,-450.0,0.00019997,2]
[360039270,1746508241755,-595.33,0.00019997,2]
[360039271,1746508241764,-450.0,0.00019997,2]
[360039272,1746508241774,-450.0,0.00019997,2]
[360039273,1746508241783,-450.0,0.00019997,2]
[360039274,1746508241792,-450.0,0.00019997,2]
[360039275,1746508241801,-450.0,0.00019997,2]
[360039276,1746508241810,-934.08,0.00019997,2]
[360039277,1746508241819,-450.0,0.00019997,2]
[360039278,1746508241831,-450.0,0.00019997,2]
[360039279,1746508241840,-151.0,0.00019998,2]
[360039280,1746508241851,-202.631679,0.00019998,2]
[360039281,1746508241862,-202.631679,0.00019998,2]
[360039282,1746508241871,-151.0,0.00019998,2]
[360039283,1746508241880,-151.0,0.00019998,2]
[360039284,1746508241890,-151.0,0.00019998,2]
[360039285,1746508241899,-200.657096,0.00019998,2]
[360039286,1746508241908,-200.657096,0.00019998,2]
[360039287,1746508241917,-1424.175,0.00019998,2]
[360039288,1746508241926,-450.0,0.00019998,2]
[360039289,1746508241935,-450.0,0.00019998,2]
[360039290,1746508241946,-500.0,0.00019998,2]
[360039291,1746508241955,-157.79426251,0.00019998,2]
[360039292,1746508241964,-500.0,0.00019998,2]
[360039293,1746508241973,-466.68812596,0.00019998,2]
[360039294,1746508241982,-550.380169,0.00019998,2]
[360039295,1746508241991,-477.11,0.00019998,2]
[360039296,1746508242002,-450.0,0.00019998,2]
[360039297,1746508242012,-450.0,0.00019998,2]
[360039298,1746508242023,-450.0,0.00019998,2]
[360039299,1746508242031,-450.0,0.00019998,2]
[360039300,1746508242041,-450.0,0.00019998,2]
[360039301,1746508242051,-450.0,0.00019998,2]
[360039302,1746508242060,-450.0,0.00019998,2]
[360039303,1746508242070,-450.0,0.00019998,2]
[360039304,1746508242079,-450.0,0.00019998,2]
[360039305,1746508242089,-463.16366444,0.00019998,2]
[360039306,1746508242098,-157.13145534,0.00019998,2]
[360039307,1746508242108,-500.0,0.00019998,2]
[360039308,1746508242117,-152.04642897,0.00019998,2]
[360039309,1746508242126,-500.0,0.00019998,2]
[360039310,1746508242135,-150.0,0.00019998,2]
[360039311,1746508242144,-450.0,0.00019998,2]
[360039312,1746508242153,-476.4026156,0.00019998,2]
[360039313,1746508242163,-325.89008284,0.00019998,2]
[360039314,1746508242172,-427.55567073,0.00019998,2]
[360039315,1746508242182,-15118.59,0.00019998,2]
[360039316,1746508242191,-450.0,0.00019998,2]
[360039317,1746508242201,-150.0,0.00019998,2]
[360039318,1746508242211,-500.0,0.00019998,2]
[360039319,1746508242220,-234.83685557,0.00019998,2]
[360039320,1746508242232,-450.0,0.00019998,2]
[360039321,1746508242242,-172.31,0.00019998,2]
[360039322,1746508242252,-450.0,0.00019998,2]
[360039323,1746508242261,-450.0,0.00019998,2]
[360039324,1746508242271,-450.0,0.00019998,2]
[360039325,1746508242280,-177.2055022,0.00019998,2]
[360039326,1746508242289,-450.0,0.00019998,2]
[360039327,1746508242298,-450.0,0.00019998,2]
[360039328,1746508242307,-450.0,0.00019998,2]
[360039329,1746508242316,-450.0,0.00019998,2]
[360039330,1746508242327,-450.0,0.00019998,2]
[360039331,1746508242336,-450.0,0.00019998,2]
[360039332,1746508242345,-450.0,0.00019998,2]
[360039333,1746508242355,-450.0,0.00019998,2]
[360039334,1746508242364,-450.0,0.00019998,2]
[360039335,1746508242375,-450.0,0.00019998,2]
[360039336,1746508242385,-450.0,0.00019998,2]
[360039337,1746508242394,-450.0,0.00019998,2]
[360039338,1746508242544,-485.441689,0.00019998,2]
[360039339,1746508242556,-150.0,0.00019998,2]
[360039340,1746508242566,-500.0,0.00019998,2]
[360039341,1746508242575,-450.0,0.00019998,2]
[360039342,1746508242585,-450.0,0.00019998,2]
[360039343,1746508242594,-150.0,0.00019998,2]
[360039344,1746508242604,-183.23719913,0.00019998,2]
[360039345,1746508242613,-450.0,0.00019998,2]
[360039346,1746508242623,-2979.6,0.00019998,2]
[360039347,1746508242633,-238.0,0.00019998,2]
[360039348,1746508242642,-595.33,0.00019998,2]
[360039349,1746508242651,-450.0,0.00019998,2]
[360039350,1746508242660,-450.0,0.00019998,2]
[360039351,1746508242669,-485.77,0.00019998,2]
[360039352,1746508242678,-196.49,0.00019998,2]
[360039353,1746508242688,-934.08,0.00019998,2]
[360039354,1746508242698,-934.08,0.00019998,2]
[360039355,1746508242708,-450.0,0.00019998,2]
[360039356,1746508242718,-450.0,0.00019998,2]
[360039357,1746508242727,-300.0,0.00019999,2]
[360039358,1746508242737,-151.0,0.00019999,2]
[360039359,1746508242746,-151.0,0.00019999,2]
[360039361,1746508242756,-279.776068,0.00019999,2]
[360039362,1746508242766,-202.631679,0.00019999,2]
[360039363,1746508242778,-202.631679,0.00019999,2]
[360039365,1746508242788,-202.631679,0.00019999,2]
[360039366,1746508242797,-202.631679,0.00019999,2]
[360039367,1746508242807,-202.631679,0.00019999,2]
[360039368,1746508242816,-202.631679,0.00019999,2]
[360039369,1746508242825,-202.631679,0.00019999,2]
[360039371,1746508242834,-202.631679,0.00019999,2]
[360039372,1746508242843,-202.631679,0.00019999,2]
[360039373,1746508242852,-202.631679,0.00019999,2]
[360039374,1746508242861,-202.631679,0.00019999,2]
[360039375,1746508242871,-202.631679,0.00019999,2]
[360039376,1746508242881,-202.631679,0.00019999,2]
[360039377,1746508242891,-202.631679,0.00019999,2]
[360039378,1746508242900,-239.025022,0.00019999,2]
[360039379,1746508242910,-151.0,0.00019999,2]
[360039380,1746508242920,-212.004961,0.00019999,2]
[360039381,1746508242929,-154.535928,0.00019999,2]
[360039382,1746508242939,-200.657096,0.00019999,2]
[360039383,1746508242948,-200.657096,0.00019999,2]
[360039384,1746508242958,-200.657096,0.00019999,2]
[360039385,1746508242967,-200.657096,0.00019999,2]
[360039386,1746508242977,-200.657096,0.00019999,2]
[360039387,1746508242987,-200.657096,0.00019999,2]
[360039388,1746508242997,-200.657096,0.00019999,2]
[360039389,1746508243006,-200.657096,0.00019999,2]
[360039390,1746508243015,-200.657096,0.00019999,2]
[360039391,1746508243025,-200.657096,0.00019999,2]
[360039392,1746508243034,-200.657096,0.00019999,2]
[360039393,1746508243044,-200.657096,0.00019999,2]
[360039394,1746508243053,-200.657096,0.00019999,2]
[360039395,1746508243063,-200.657096,0.00019999,2]
[360039396,1746508243072,-151.8,0.00019999,2]
[360039397,1746508243082,-151.0,0.00019999,2]
[360039398,1746508243091,-151.0,0.00019999,2]
[360039399,1746508243101,-151.0,0.00019999,2]
[360039400,1746508243110,-400.0,0.00019999,2]
[360039401,1746508243120,-151.0,0.00019999,2]
[360039402,1746508243130,-151.0,0.00019999,2]
[360039403,1746508243139,-151.0,0.00019999,2]
[360039404,1746508243149,-151.0,0.00019999,2]
[360039405,1746508243158,-151.0,0.00019999,2]
[360039406,1746508243167,-151.0,0.00019999,2]
[360039407,1746508243176,-151.0,0.00019999,2]
[360039408,1746508243185,-151.0,0.00019999,2]
[360039409,1746508243194,-151.0,0.00019999,2]
[360039410,1746508243204,-151.0,0.00019999,2]
[360039411,1746508243213,-151.0,0.00019999,2]
[360039412,1746508243223,-200.004575,0.00019999,2]
[360039413,1746508243237,-151.0,0.00019999,2]
[360039414,1746508243246,-151.0,0.00019999,2]
[360039415,1746508243255,-450.0,0.00019999,2]
[360039416,1746508243265,-450.0,0.00019999,2]
[360039418,1746508243275,-557.35,0.00019999,2]
[360039420,1746508243284,-151.0,0.00019999,2]
[360039421,1746508243293,-181.329349,0.00019999,2]
[360039422,1746508243303,-151.0,0.00019999,2]
[360039423,1746508243314,-177.49,0.00019999,2]
[360039424,1746508243324,-193.978146,0.00019999,2]
[360039425,1746508243334,-151.0,0.00019999,2]
[360039426,1746508243343,-151.0,0.00019999,2]
[360039427,1746508243353,-151.0,0.00019999,2]
[360039428,1746508243362,-151.0,0.00019999,2]
[360039429,1746508243372,-154.104446,0.00019999,2]
[360039430,1746508243382,-151.0,0.00019999,2]
[360039431,1746508243391,-151.0,0.00019999,2]
[360039432,1746508243401,-151.0,0.00019999,2]
[360039433,1746508243410,-151.0,0.00019999,2]
[360039434,1746508243420,-151.0,0.00019999,2]
[360039435,1746508243430,-151.0,0.00019999,2]
[360039436,1746508243439,-181.811655,0.00019999,2]
[360039437,1746508243448,-151.0,0.00019999,2]
[360039438,1746508243458,-151.0,0.00019999,2]
[360039439,1746508243468,-286.027763,0.00019999,2]
[360039440,1746508243477,-286.027763,0.00019999,2]
[360039441,1746508243487,-15118.59,0.00019999,2]
[360039442,1746508243496,-15118.59,0.00019999,2]
[360039443,1746508243505,-15118.59,0.00019999,2]
[360039445,1746508243515,-15118.59,0.00019999,2]
[360039446,1746508243524,-15118.59,0.00019999,2]
[360039447,1746508243534,-15118.59,0.00019999,2]
[360039448,1746508243543,-15118.59,0.00019999,2]
[360039449,1746508243552,-15118.59,0.00019999,2]
[360039450,1746508243562,-15118.59,0.00019999,2]
[360039451,1746508243571,-10181.52749406,0.00019999,2]
[360039452,1746508243597,-1000.0,0.00019999,2]
[360039453,1746508243608,-3937.06250594,0.00019999,2]
[360039454,1746508243617,-15118.59,0.00019999,2]
[360039455,1746508243627,-10016.80515584,0.00019999,2]
[360039458,1746508246255,-245.462534,0.000199,2]
[360039459,1746508246265,-167.0933022,0.000199,2]
[360039460,1746508246274,-18.74495298,0.00019999,2]
[360039461,1746508246285,-132.25504702,0.00019999,2]
[360039462,1746508246294,-151.0,0.00019999,2]
[360039463,1746508246303,-151.0,0.00019999,2]
[360039464,1746508246312,-153.968078,0.00019999,2]
[360039465,1746508246321,-151.0,0.00019999,2]
[360039466,1746508246331,-151.0,0.00019999,2]
[360039467,1746508246340,-450.0,0.00019999,2]
[360039468,1746508246349,-443.93,0.00019999,2]
[360039469,1746508246359,-450.0,0.00019999,2]
[360039470,1746508246368,-576.58390231,0.00019999,2]
[360039471,1746508246377,-393.79,0.00019999,2]
[360039472,1746508246386,-301.06,0.00019999,2]
[360039473,1746508246396,-151.0,0.00019999,2]
[360039474,1746508246405,-1165.073769,0.00019999,2]
[360039475,1746508246414,-1165.073769,0.00019999,2]
[360039476,1746508246424,-151.0,0.00019999,2]
[360039477,1746508246433,-151.0,0.00019999,2]
[360039478,1746508246443,-151.0,0.00019999,2]
[360039479,1746508246452,-450.0,0.00019999,2]
[360039480,1746508246461,-450.0,0.00019999,2]
[360039481,1746508246470,-450.0,0.00019999,2]
[360039483,1746508246479,-450.0,0.00019999,2]
[360039485,1746508246488,-36.76543967,0.00019999,2]
[360039738,1746508343197,238.4971635,0.00018,2]
[360039742,1746508407277,1000.0,0.0003,30]
[360039750,1746508470059,1087.23,0.00019089,2]
[360039776,1746508600043,14820.44,0.00018974,2]
[360039788,1746508642245,258.05,0.00018967,2]
[360039791,1746508721806,585.96,0.00018938,2]
[360039792,1746508753141,200.0,0.00019,2]
[360039799,1746508833542,471.08,0.00017024,2]
[360039800,1746508834361,471.08,0.00019288,2]
[360039801,1746508847508,1000.0,0.00018942,2]
[360039810,1746508895221,1387.78,0.00018951,2]
[360039819,1746508999168,236.97,0.00018932,2]
[360039823,1746509113329,166.56,0.00018956,2]
[360039824,1746509113517,166.56,0.00019004,2]
[360039825,1746509113869,166.56,0.00019051,2]
[360039830,1746509171163,200.34,0.00018952,2]
[360039833,1746509200927,584.8809702,0.0003013,120]
[360039834,1746509206386,259.4,0.00018924,2]
[360039853,1746509357935,157.70347021,0.0003013,120]
[360039856,1746509374783,438.93,0.00018933,2]
[360039868,1746509432232,-165.38,0.00019661,2]
[360039869,1746509432242,-250.0,0.00019671,2]
[360039870,1746509432252,-200.0,0.000197,2]